bitfinex/quotes_SOLUSD_20251018
["timestamp","ask_amount","ask_price","bid_price","bid_amount"]
[1760794240013,0.7,185.71,185.65,0.28]
[1760794240415,0.7,185.71,185.65,5.66642743]
[1760794240806,22.88,185.73,185.65,5.66642743]
[1760794241009,0.7,185.72,185.65,5.66642743]
[1760794241308,0.7,185.71,185.65,5.66642743]
[1760794241821,0.7,185.7,185.65,5.66642743]
[1760794242013,0.7,185.69,185.65,5.66642743]
[1760794242320,0.7,185.72,185.66,0.18]
[1760794243031,0.7,185.72,185.66,6.10470094]
[1760794243328,0.7,185.72,185.67,0.18]
[1760794243520,0.71,185.74,185.68,0.71856096]
[1760794244205,0.71,185.74,185.69,5.38531961]
[1760794244932,22.88,185.79,185.7,0.71850296]
[1760794244933,0.71,185.76,185.7,0.71850296]
[1760794245808,0.71,185.76,185.7,0.53850296]
[1760794246123,0.71,185.76,185.68,24.02410392]
[1760794246312,0.71,185.75,185.68,24.20410392]
[1760794246521,0.71,185.74,185.68,24.20410392]
[1760794247008,4.42540435,185.78,185.65,0.1]
[1760794247009,0.71,185.73,185.65,0.1]
[1760794247327,0.71,185.73,185.65,5.6664369]
[1760794247514,0.71,185.72,185.65,5.6664369]
[1760794247717,0.71,185.72,185.65,5.4864369]
[1760794247912,0.71,185.72,185.66,0.18]
[1760794248228,22.88,185.76,185.67,5.38589971]
[1760794248424,0.71,185.74,185.67,5.56589971]
[1760794248625,0.71,185.74,185.67,6.10448968]
[1760794249530,0.71,185.73,185.67,6.10448968]
[1760794249905,0.71,185.72,185.67,0.53858997]
[1760794250129,0.71,185.72,185.66,5.56614999]
[1760794253631,0.71,185.72,185.65,0.63864799]
[1760794253632,0.71,185.71,185.65,0.1]
[1760794253810,0.71,185.71,185.65,18.19999998]
[1760794254018,0.71,185.7,185.65,18.19999998]
[1760794254424,0.71,185.69,185.65,18.19999998]
[1760794254624,0.71,185.68,185.65,23.58646769]
[1760794258320,0.71,185.7,185.65,23.76646769]
[1760794258838,0.71,185.72,185.66,0.71861898]
[1760794259044,0.71,185.74,185.67,0.18]
[1760794259232,0.71,185.74,185.67,18.27999998]
[1760794259441,0.71,185.73,185.67,18.27999998]
[1760794259941,22.88,185.75,185.68,0.71856096]
[1760794260141,0.71,185.76,185.68,18.63856094]
[1760794260346,0.71,185.76,185.69,0.18]
[1760794261339,0.71,185.76,185.68,18.63856094]
[1760794261539,0.71,185.75,185.68,18.63856094]
[1760794261739,0.71,185.75,185.68,18.81856094]
[1760794262247,22.88,185.77,185.69,5.38531961]
[1760794262423,0.71,185.75,185.69,5.38531961]
[1760794262625,22.88,185.77,185.69,5.38531961]
[1760794262933,0.71,185.76,185.69,5.38531961]
[1760794263140,0.71,185.75,185.69,5.56531961]
[1760794263547,0.71,185.77,185.7,0.71850296]
[1760794263738,0.71,185.77,185.71,0.18]
[1760794265135,0.71,185.77,185.72,0.53844497]
[1760794265335,0.71,185.77,185.72,0.71844497]
[1760794265734,10.87647521,185.83,185.72,0.53844497]
[1760794265934,22.88,185.8,185.72,0.71844497]
[1760794266146,0.72,185.79,185.72,0.71844497]
[1760794266352,0.72,185.79,185.73,5.5641598]
[1760794266656,0.72,185.79,185.74,0.53838699]
[1760794266861,0.72,185.78,185.74,0.53838699]
[1760794268447,22.88,185.8,185.74,0.53838699]
[1760794268448,22.88,185.82,185.74,6.10218683]
[1760794268655,0.72,185.79,185.74,6.10218683]
[1760794269161,0.72,185.78,185.71,13.46184911]
[1760794269483,0.72,185.77,185.7,5.923255]
[1760794269670,0.72,185.76,185.67,16.19476908]
[1760794269876,0.72,185.75,185.67,16.19476908]
[1760794270044,0.72,185.74,185.66,33.93647521]
[1760794270241,0.72,185.74,185.66,16.44249859]
[1760794270449,0.72,185.73,185.66,16.26249859]
[1760794270649,0.72,185.72,185.66,16.26249859]
[1760794271164,0.72,185.72,185.67,0.53858997]
[1760794271362,0.72,185.72,185.67,0.71858997]
[1760794271658,0.72,185.71,185.67,18.63858995]
[1760794272064,0.72,185.73,185.67,18.81858995]
[1760794272947,0.72,185.72,185.67,18.09999998]
[1760794273165,5.3833574,185.76,185.65,24.30507978]
[1760794273166,0.72,185.71,185.65,24.30507978]
[1760794273377,0.7,185.7,185.65,24.12507978]
[1760794273665,0.7,185.69,185.65,24.12507978]
[1760794274045,0.7,185.68,185.65,0.1]
[1760794274447,22.88,185.76,185.65,5.4864351]
[1760794274746,0.7,185.71,185.65,5.6664351]
[1760794274955,0.7,185.7,185.65,5.6664351]
[1760794275156,0.7,185.69,185.65,5.4864351]
[1760794275570,22.88,185.76,185.66,6.10457533]
[1760794275749,0.7,185.73,185.66,6.10457533]
[1760794276152,0.7,185.72,185.65,24.12507454]
[1760794276363,0.7,185.71,185.65,6.02507454]
[1760794276572,0.7,185.7,185.65,0.1]
[1760794276871,0.7,185.69,185.65,5.48647356]
[1760794277958,0.7,185.73,185.66,0.18]
[1760794278145,0.7,185.73,185.66,0.71861898]
[1760794278851,0.7,185.76,185.67,11.05647521]
[1760794279155,0.7,185.76,185.68,0.71856096]
[1760794279350,0.7,185.76,185.69,0.18]
[1760794280050,0.7,185.76,185.69,5.56504979]
[1760794280271,0.7,185.75,185.69,5.38504979]
[1760794280471,0.7,185.74,185.69,5.38504979]
[1760794280767,0.7,185.73,185.69,5.38504979]
[1760794283378,0.7,185.73,185.69,18.1]
[1760794286676,0.7,185.73,185.69,23.48529211]
[1760794287172,0.7,185.72,185.69,18.1]
[1760794287356,0.7,185.71,185.65,24.12491892]
[1760794288755,0.7,185.71,185.65,24.30491892]
[1760794289563,0.7,185.7,185.65,18.2]
[1760794289760,0.7,185.69,185.65,18.2]
[1760794290262,0.7,185.68,185.65,18.2]
[1760794290467,22.88,185.74,185.65,0.1]
[1760794290674,0.7,185.67,185.65,0.1]
[1760794290866,0.7,185.67,185.65,18.2]
[1760794291777,0.7,185.69,185.65,18.2]
[1760794291972,0.7,185.68,185.65,18.2]
[1760794292877,28.26410988,185.74,185.65,18.2]
[1760794293054,0.7,185.68,185.65,0.1]
[1760794298479,0.7,185.67,185.65,0.1]
[1760794298678,2.81655854,185.75,185.66,11.59509419]
[1760794298862,0.7,185.71,185.65,28.90504798]
[1760794299064,0.7,185.7,185.65,28.90504798]
[1760794299285,0.7,185.7,185.66,16.19826678]
[1760794299891,22.88,185.73,185.66,16.19826678]
[1760794300094,0.7,185.69,185.65,0.1]
[1760794300386,0.7,185.68,185.65,0.1]
[1760794300590,22.88,185.72,185.65,0.1]
[1760794300591,0.7,185.7,185.65,0.1]
[1760794300780,0.7,185.71,185.65,5.48638408]
[1760794300984,0.7,185.71,185.66,0.18]
[1760794301180,0.7,185.7,185.65,5.48638408]
[1760794301375,0.7,185.69,185.65,5.48638408]
[1760794301584,0.7,185.68,185.65,0.1]
[1760794302768,31.08015025,185.75,185.65,0.1]
[1760794302769,0.7,185.67,185.65,0.1]
[1760794303169,0.71,185.69,185.65,0.1]
[1760794303482,0.71,185.68,185.65,0.1]
[1760794305505,5.38396672,185.74,185.65,0.1]
[1760794305696,0.71,185.67,185.65,0.1]
[1760794315502,2.81655854,185.75,185.65,0.1]
[1760794315796,2.81655854,185.75,185.66,0.18]
[1760794315797,0.71,185.72,185.66,0.18]
[1760794315996,0.71,185.72,185.66,11.69509419]
[1760794316198,0.71,185.71,185.66,11.51509419]
[1760794316384,0.71,185.7,185.66,11.51509419]
[1760794316582,0.71,185.69,185.65,0.1]
[1760794318393,22.88,185.68,185.65,0.1]
[1760794318593,0.71,185.67,185.65,0.1]
[1760794319599,23.59,185.67,185.65,0.1]
[1760794320708,22.88,185.66,185.65,0.1]
[1760794321196,23.59,185.66,185.65,0.1]
[1760794322409,0.71,185.66,185.65,0.1]
[1760794326687,23.59,185.66,185.65,0.1]
[1760794327029,0.71,185.66,185.65,0.1]
[1760794327218,22.88,185.63,185.61,0.1]
[1760794327396,0.7,185.62,185.61,0.1]
[1760794328117,33.75647521,185.59,185.58,0.1]
[1760794328319,34.45647521,185.59,185.58,0.1]
[1760794328624,22.88,185.55,185.54,0.1]
[1760794328790,33.75647521,185.54,185.53,0.1]
[1760794328990,34.45647521,185.54,185.46,0.1]
[1760794329288,5.39047555,185.52,185.46,0.1]
[1760794329711,0.7,185.51,185.46,0.1]
[1760794330627,23.58,185.51,185.46,0.1]
[1760794331213,0.7,185.51,185.46,0.1]
[1760794331822,16.96702019,185.51,185.46,0.1]
[1760794332046,17.4714931,185.51,185.46,0.1]
[1760794332234,46.80633213,185.51,185.46,0.1]
[1760794332404,23.92633213,185.51,185.46,0.1]
[1760794333501,10.87647521,185.48,185.46,0.1]
[1760794333703,38.09269567,185.48,185.46,0.1]
[1760794334030,15.90269567,185.48,185.46,0.1]
[1760794335504,21.29411253,185.48,185.46,0.1]
[1760794336834,15.90269567,185.48,185.46,0.1]
[1760794337021,16.95789207,185.48,185.46,0.1]
[1760794337399,39.83789207,185.48,185.46,0.1]
[1760794337705,41.95789207,185.48,185.46,0.1]
[1760794338638,47.52730313,185.48,185.46,0.1]
[1760794342015,49.52730312,185.48,185.46,0.1]
[1760794342736,47.52730313,185.48,185.46,0.1]
[1760794342918,45.40730313,185.48,185.46,0.1]
[1760794343118,22.52730313,185.48,185.46,0.1]
[1760794343619,47.52730313,185.48,185.46,0.1]
[1760794343811,22.52730313,185.48,185.46,0.1]
[1760794344017,45.40730313,185.48,185.46,0.1]
[1760794344444,10.87647521,185.49,185.46,0.1]
[1760794344946,0.69,185.48,185.46,0.1]
[1760794346152,6.08141686,185.48,185.46,0.1]
[1760794347022,16.26789207,185.48,185.46,0.1]
[1760794348941,22.88,185.48,185.47,0.77]
[1760794349245,22.88,185.48,185.47,0.1]
[1760794350043,33.75647521,185.48,185.47,0.1]
[1760794350714,39.83789207,185.48,185.47,0.1]
[1760794351135,39.14789207,185.48,185.47,0.1]
[1760794353140,39.83789207,185.48,185.47,0.1]
[1760794354137,33.75647521,185.48,185.47,0.1]
[1760794354532,39.83789207,185.48,185.47,0.1]
[1760794355125,39.14789207,185.48,185.47,0.1]
[1760794355531,33.75647521,185.48,185.47,0.1]
[1760794356526,36.57704523,185.48,185.47,0.1]
[1760794357024,13.69704523,185.48,185.47,0.1]
[1760794357423,25.70057002,185.48,185.47,0.77]
[1760794357622,22.88,185.48,185.47,0.1]
[1760794359055,22.88,185.48,185.47,0.77]
[1760794360131,22.88,185.48,185.47,0.1]
[1760794360444,5.39113696,185.49,185.47,0.1]
[1760794360652,22.88,185.48,185.47,0.77]
[1760794361059,22.88,185.48,185.47,0.1]
[1760794362543,22.88,185.48,185.47,0.77]
[1760794362740,10.87647521,185.53,185.47,0.77]
[1760794363052,22.88,185.5,185.47,0.77]
[1760794364948,22.88,185.54,185.47,0.77]
[1760794366956,2.81965277,185.56,185.47,1.30917075]
[1760794367143,7.67931194,185.58,185.48,0.66]
[1760794367345,0.72,185.58,185.48,0.66]
[1760794367544,22.88,185.56,185.48,0.66]
[1760794368350,22.88,185.56,185.48,6.05136319]
[1760794368555,22.88,185.56,185.49,6.05112098]
[1760794368764,22.88,185.56,185.5,0.66]
[1760794368967,22.88,185.55,185.5,0.66]
[1760794369171,22.88,185.55,185.48,0.66]
[1760794369172,22.88,185.54,185.48,0.66]
[1760794370951,0.72,185.54,185.48,0.66]
[1760794371362,23.6,185.54,185.48,0.66]
[1760794372080,22.88,185.56,185.48,0.66]
[1760794372246,0.72,185.54,185.48,0.66]
[1760794372578,22.88,185.55,185.48,6.05134585]
[1760794372763,2.81907361,185.59,185.51,22.88]
[1760794372949,0.72,185.61,185.52,1.19902544]
[1760794373144,0.72,185.61,185.53,0.66]
[1760794373350,22.88,185.59,185.53,0.66]
[1760794373550,23.6,185.59,185.53,0.66]
[1760794373747,33.75647521,185.58,185.5,0.66]
[1760794374167,22.88,185.58,185.5,0.66]
[1760794374376,22.88,185.59,185.5,0.66]
[1760794374554,22.88,185.59,185.51,5.39054498]
[1760794374754,22.88,185.59,185.52,0.66]
[1760794375252,0.72,185.58,185.52,0.66]
[1760794376371,23.6,185.6,185.52,0.66]
[1760794377751,23.6,185.6,185.5,5.39079371]
[1760794377752,23.6,185.6,185.5,0.66]
[1760794378973,23.6,185.6,185.51,0.53905449]
[1760794379276,22.88,185.59,185.52,0.66]
[1760794379672,0.72,185.6,185.53,0.53899638]
[1760794380064,0.72,185.6,185.54,0.66]
[1760794380264,23.6,185.6,185.54,0.66]
[1760794380762,23.6,185.6,185.52,23.49012411]
[1760794380963,0.72,185.59,185.52,23.49012411]
[1760794381168,0.72,185.59,185.53,0.66]
[1760794381388,0.72,185.59,185.52,18.1]
[1760794381587,0.72,185.58,185.52,18.1]
[1760794381888,0.72,185.57,185.5,1.19908355]
[1760794382255,0.72,185.57,185.51,0.66]
[1760794383277,0.72,185.57,185.51,6.05049332]
[1760794384554,23.6,185.6,185.52,1.19902544]
[1760794384747,23.6,185.6,185.53,0.66]
[1760794384977,23.6,185.6,185.53,6.049861]
[1760794385172,22.88,185.62,185.54,1.19896733]
[1760794385360,10.87647521,185.68,185.55,0.66]
[1760794385561,2.81767825,185.68,185.57,10.87647521]
[1760794385758,0.72,185.67,185.58,1.19885116]
[1760794385957,0.2,185.69,185.59,11.53647521]
[1760794386165,0.2,185.69,185.6,1.1987931]
[1760794386376,0.87,185.69,185.61,0.66]
[1760794386558,0.87,185.69,185.62,0.53873505]
[1760794386758,0.87,185.69,185.63,0.66]
[1760794387166,0.2,185.69,185.64,0.538677]
[1760794387363,0.87,185.69,185.64,1.198677]
[1760794387848,0.87,185.69,185.64,0.66]
[1760794388052,0.67,185.68,185.62,0.66]
[1760794388248,0.2,185.69,185.62,0.66]
[1760794389065,0.87,185.69,185.62,1.19873505]
[1760794389267,0.67,185.68,185.62,1.19873505]
[1760794389578,0.87,185.69,185.62,1.19873505]
[1760794389753,0.87,185.69,185.62,6.58608552]
[1760794390075,0.2,185.69,185.63,0.66]
[1760794390280,0.87,185.69,185.63,0.66]
[1760794392770,0.87,185.69,185.59,6.04799656]
[1760794392988,0.67,185.68,185.59,6.04799656]
[1760794393162,0.2,185.69,185.59,6.04799656]
[1760794393358,0.68,185.67,185.59,6.04799656]
[1760794393674,0.68,185.66,185.6,0.68]
[1760794393876,0.68,185.66,185.6,6.06787042]
[1760794394081,0.68,185.66,185.6,0.68]
[1760794395378,23.56,185.66,185.58,0.53885116]
[1760794395568,22.88,185.65,185.57,0.68]
[1760794395781,22.88,185.65,185.55,18.1]
[1760794396078,0.68,185.66,185.55,18.1]
[1760794396079,0.68,185.64,185.55,0.68]
[1760794397673,22.88,185.61,185.52,6.07024258]
[1760794397858,0.68,185.6,185.52,0.68]
[1760794399077,0.68,185.6,185.49,41.66]
[1760794399265,0.68,185.59,185.49,18.78]
[1760794399466,0.68,185.58,185.49,24.17109468]
[1760794399679,0.68,185.57,185.49,24.17109468]
[1760794399975,0.68,185.59,185.5,1.21908355]
[1760794400180,0.68,185.59,185.51,0.68]
[1760794400483,22.88,185.61,185.52,0.53902544]
[1760794400484,23.56,185.61,185.52,0.53902544]
[1760794400653,22.88,185.61,185.53,0.68]
[1760794400860,22.88,185.63,185.54,0.53896733]
[1760794401058,23.56,185.63,185.55,0.68]
[1760794401282,22.88,185.62,185.55,0.68]
[1760794401980,23.56,185.61,185.53,5.3899565]
[1760794402186,0.68,185.6,185.52,18.78]
[1760794402485,0.68,185.59,185.52,18.78]
[1760794402683,0.68,185.59,185.52,24.17020664]
[1760794403378,0.68,185.59,185.53,0.68]
[1760794403586,0.68,185.62,185.54,0.53896733]
[1760794403788,0.68,185.62,185.55,6.06938291]
[1760794404185,22.88,185.63,185.55,5.38938291]
[1760794404381,23.56,185.65,185.56,1.21890924]
[1760794404583,0.68,185.64,185.56,1.21890924]
[1760794404784,0.68,185.63,185.56,1.09890924]
[1760794405582,0.12,185.64,185.57,0.68]
[1760794405776,0.8,185.64,185.57,0.68]
[1760794408293,0.8,185.64,185.57,6.06870911]
[1760794408492,0.68,185.67,185.58,1.09885116]
[1760794408687,0.8,185.66,185.59,0.68]
[1760794408887,0.2,185.69,185.6,0.4187931]
[1760794408888,1.0,185.69,185.6,0.4187931]
[1760794409089,1.0,185.69,185.61,0.68]
[1760794409298,23.88,185.69,185.61,0.68]
[1760794409496,1.0,185.69,185.61,6.06761432]
[1760794409691,0.68,185.68,185.61,6.06761432]
[1760794410187,0.68,185.68,185.62,1.09873505]
[1760794411203,0.32,185.69,185.63,0.68]
[1760794411498,0.2,185.69,185.64,5.80539507]
[1760794411695,0.2,185.69,185.65,0.68]
[1760794411889,0.88,185.69,185.65,0.68]
[1760794413403,0.88,185.69,185.64,0.418677]
[1760794413600,0.88,185.69,185.64,1.098677]
[1760794413895,0.2,185.69,185.64,0.418677]
[1760794414086,0.2,185.69,185.65,0.68]
[1760794415406,0.88,185.69,185.65,0.68]
[1760794419009,0.68,185.68,185.62,6.48603385]
[1760794419195,0.68,185.67,185.62,6.48603385]
[1760794419696,0.2,185.69,185.63,0.68]
[1760794419697,1.0,185.69,185.63,0.68]
[1760794423006,0.88,185.69,185.63,0.68]
[1760794423207,0.12,185.68,185.62,0.41873505]
[1760794423386,0.7,185.67,185.62,0.41873505]
[1760794423586,0.7,185.67,185.63,0.67]
[1760794424099,0.9,185.69,185.64,0.67]
[1760794424809,0.9,185.69,185.65,0.67]
[1760794425005,0.2,185.69,185.66,0.67]
[1760794431122,0.2,185.69,185.65,5.80511126]
[1760794431314,0.2,185.69,185.67,0.67]
[1760794431619,0.2,185.69,185.68,0.41856096]
[1760794432014,0.2,185.69,185.67,18.1]
[1760794432220,0.2,185.69,185.67,18.77]
[1760794432730,0.2,185.69,185.67,18.1]
[1760794433413,0.9,185.69,185.67,18.1]
[1760794433610,0.2,185.69,185.64,5.80541308]
[1760794433814,0.9,185.69,185.64,6.47541308]
[1760794434018,0.9,185.69,185.65,0.67]
[1760794435424,0.2,185.69,185.65,5.38646012]
[1760794435625,0.2,185.69,185.66,1.08861898]
[1760794435813,0.2,185.69,185.67,0.67]
[1760794436210,0.2,185.69,185.68,0.67]
[1760794436410,0.2,185.69,185.66,0.41861898]
[1760794436411,0.2,185.69,185.66,1.08861898]
[1760794436927,0.2,185.69,185.66,6.47476881]
[1760794437224,0.2,185.69,185.67,0.67]
[1760794438612,0.2,185.69,185.66,5.80476881]
[1760794438823,0.9,185.69,185.66,5.80476881]
[1760794439035,0.2,185.69,185.66,6.47476881]
[1760794439422,0.2,185.69,185.66,5.38614983]
[1760794439823,0.2,185.69,185.66,0.67]
[1760794440224,0.2,185.69,185.66,1.08861898]
[1760794441135,0.7,185.68,185.65,5.80512792]
[1760794441342,0.2,185.69,185.63,18.1]
[1760794441343,0.7,185.67,185.63,18.1]
[1760794441515,0.7,185.66,185.62,18.51873505]
[1760794441716,0.7,185.66,185.62,19.18873505]
[1760794442018,0.2,185.69,185.62,19.18873505]
[1760794442019,0.7,185.68,185.63,0.67]
[1760794442735,0.2,185.69,185.64,1.088677]
[1760794442918,0.2,185.69,185.65,0.67]
[1760794443116,0.2,185.69,185.66,0.41861898]
[1760794443313,0.2,185.69,185.66,1.08861898]
[1760794443512,0.2,185.69,185.66,0.41861898]
[1760794443753,0.2,185.69,185.68,10.87647521]
[1760794443917,0.2,185.69,185.68,17.35064582]
[1760794447022,0.2,185.69,185.68,35.45064582]
[1760794448117,0.2,185.69,185.68,58.33064582]
[1760794450538,0.2,185.69,185.68,35.45064582]
[1760794450743,0.2,185.75,185.72,10.87647521]
[1760794451039,0.2,185.75,185.74,10.87647521]
[1760794452123,0.2,185.75,185.74,16.26034513]
[1760794453444,0.2,185.75,185.74,16.94034513]
[1760794453940,0.2,185.75,185.74,35.04034513]
[1760794454920,0.2,185.75,185.74,34.94034513]
[1760794455135,1e-08,185.75,185.74,34.94034513]
[1760794455336,1e-08,185.75,185.74,51.12812335]
[1760794455720,1e-08,185.75,185.74,53.12812334]
[1760794456744,0.7,185.86,185.78,10.87647521]
[1760794457046,0.9,185.88,185.79,44.69713832]
[1760794457241,0.9,185.88,185.79,58.15319085]
[1760794457432,0.9,185.88,185.8,0.68]
[1760794457633,0.9,185.88,185.82,10.87647521]
[1760794457830,0.9,185.88,185.84,10.87647521]
[1760794458148,0.9,185.88,185.85,0.41806833]
[1760794458441,0.2,185.88,185.85,1.09806833]
[1760794458646,0.2,185.88,185.85,0.41806833]
[1760794458838,0.2,185.88,185.86,5.38039384]
[1760794459147,0.2,185.88,185.87,0.41801043]
[1760794460848,0.2,185.88,185.87,5.7981148]
[1760794461235,0.2,185.88,185.87,17.35459001]
[1760794461436,0.2,185.88,185.87,40.23459001]
[1760794462164,0.2,185.88,185.87,42.39144746]
[1760794462743,0.2,185.88,185.87,40.23459001]
[1760794462928,0.2,185.88,185.87,42.39156377]
[1760794466357,0.2,185.94,185.88,10.87647521]
[1760794466534,0.2,185.94,185.9,10.87647521]
[1760794466736,0.2,185.94,185.92,10.87647521]
[1760794467048,0.2,185.94,185.93,16.67268023]
[1760794467244,0.2,185.94,185.93,19.5088401]
[1760794467442,0.9,186.01,185.94,10.87647521]
[1760794467443,0.2,186.01,185.94,10.87647521]
[1760794467649,0.2,186.01,185.96,10.87647521]
[1760794467959,0.2,186.01,185.97,0.41772113]
[1760794468251,0.2,186.01,185.99,10.87647521]
[1760794468436,0.2,186.01,186.0,0.4176344]
[1760794468837,0.2,186.01,186.0,1.0976344]
[1760794469039,0.2,186.01,186.0,5.79397848]
[1760794470247,0.9,186.01,186.0,5.79397848]
[1760794470440,0.2,186.01,186.0,5.79397848]
[1760794471145,0.9,186.01,186.0,0.4176344]
[1760794471553,0.2,186.01,186.0,5.79397848]
[1760794473264,0.2,186.01,186.0,6.47397848]
[1760794473448,0.2,186.01,186.0,5.79397848]
[1760794474464,0.9,186.01,186.0,0.4176344]
[1760794475468,0.9,186.01,186.0,5.79397848]
[1760794475853,0.9,186.01,186.0,0.4176344]
[1760794476054,0.9,186.01,185.99,0.41766331]
[1760794476457,0.9,186.01,185.98,0.41769222]
[1760794476765,0.9,186.01,185.97,2.15581125]
[1760794476970,0.7,186.0,185.95,11.29425418]
[1760794477206,0.7,185.99,185.95,11.29425418]
[1760794477342,0.2,186.01,185.95,11.29425418]
[1760794477543,0.7,185.98,185.88,0.41798149]
[1760794477779,23.0,185.97,185.87,5.38010437]
[1760794477958,0.7,185.96,185.88,0.41798149]
[1760794478342,0.12,185.95,185.85,21.97753548]
[1760794478562,0.7,185.94,185.85,36.10924384]
[1760794478759,0.7,185.93,185.86,10.87647521]
[1760794478959,0.7,185.92,185.87,0.41801043]
[1760794479160,0.7,185.92,185.87,1.09801043]
[1760794479360,0.12,185.98,185.89,10.87647521]
[1760794479564,0.7,185.94,185.9,0.41792361]
[1760794479744,22.88,185.99,185.91,11.55647521]
[1760794479745,0.7,185.99,185.91,11.55647521]
[1760794479945,0.7,185.99,185.93,10.87647521]
[1760794480164,0.7,185.99,185.95,10.87647521]
[1760794480360,0.7,185.99,185.96,0.41775005]
[1760794480742,0.2,186.01,185.95,0.41777897]
[1760794480743,0.7,185.98,185.95,0.41777897]
[1760794480943,0.2,186.01,185.95,0.41777897]
[1760794480944,0.7,185.97,185.95,0.41777897]
[1760794481149,0.7,185.96,185.95,0.41777897]
[1760794481676,0.7,185.96,185.95,5.79556869]
[1760794482865,0.7,185.96,185.95,0.41777897]
[1760794484268,0.71,185.98,185.95,5.79550179]
[1760794484477,0.71,185.97,185.95,5.79550179]
[1760794484663,0.71,185.96,185.95,5.79550179]
[1760794485177,0.71,185.96,185.95,0.41777897]
[1760794485378,0.71,185.96,185.94,0.41780789]
[1760794485676,0.71,185.96,185.94,5.79587981]
[1760794486580,0.71,186.0,185.95,10.87647521]
[1760794486769,0.71,186.0,185.96,0.41775005]
[1760794487481,0.71,186.0,185.96,1.13775005]
[1760794487668,0.2,186.01,185.97,11.59647521]
[1760794487880,0.2,186.01,185.98,0.41769222]
[1760794488064,0.91,186.01,185.98,0.41769222]
[1760794488872,0.91,186.01,185.98,5.79446074]
[1760794489771,0.2,186.01,185.98,5.79446074]
[1760794490078,0.91,186.01,185.98,5.79446074]
[1760794491302,0.2,186.01,185.98,5.79446074]
[1760794492582,0.2,186.01,185.98,6.51446074]
[1760794492789,0.71,186.0,185.98,5.79446074]
[1760794493372,0.2,186.01,185.98,0.41769222]
[1760794493587,0.71,185.99,185.98,0.41769222]
[1760794493970,0.91,186.01,185.98,0.41769222]
[1760794494171,0.71,186.0,185.98,0.41769222]
[1760794494699,0.71,185.99,185.97,0.41772113]
[1760794494872,0.71,185.98,185.96,0.41775005]
[1760794495078,0.71,185.97,185.95,0.41777897]
[1760794495466,0.2,186.01,185.95,0.41777897]
[1760794495676,0.71,186.0,185.95,0.41777897]
[1760794495882,0.71,186.0,185.94,0.41780789]
[1760794496080,0.71,185.99,185.94,0.41780789]
[1760794496286,0.83,185.99,185.9,0.41792361]
[1760794496497,0.83,185.99,185.88,18.41308688]
[1760794496792,0.71,185.98,185.88,5.79773571]
[1760794496980,0.83,185.97,185.88,5.79773571]
[1760794497182,0.71,185.96,185.88,0.41798149]
[1760794497487,0.71,185.96,185.88,17.39419058]
[1760794497682,0.71,185.96,185.89,0.72]
[1760794497993,0.71,185.96,185.9,0.41792361]
[1760794498584,0.71,185.96,185.88,5.79771537]